Cogmind - Beta 15 @@@ ROGUE MODE // 2025.08.18 @ 15:10:43 Player: naththebg Result: Destroyed by S-27 Virus with Autogun Performance ------------- Evolutions (4) 2000 Regions Visited (16) 3200 Robots Destroyed (249) 1245 Value Destroyed (11937) 11937 Prototype IDs (36) 720 Alien Tech Used (0) 0 Bonus (9837) 9837 TOTAL SCORE: 28939 Bonus ------- High Alert Combat Kills 3302 Follower Combat Kills 2366 Entered Garrisons 1000 Used RIF Installer 3000 Aligned with FarCom 300 Friendly Fire -131 Cogmind --------- Core Integrity 0/850 Matter 189/300 Energy 100/100 System Corruption 5% Temperature Cool (1) Movement Flying (40) Location -6/Garrison Parts ------- > --- POWER (1) -------- (None) > --- PROPULSION (3) --- Nuclear Pulse Thruster > --- UTILITY (8) ------ Improved Utility Shielding Relay Coupler [Grunt] (3) Relay Coupler [Sentry] (35) Relay Coupler [Hunter] (25) Relay Coupler [Heavy] (19) Relay Coupler [Behemoth] (8) > --- WEAPON (3) ------- Remote Datajack > --- INVENTORY (5) ---- Layered Heavy Armor Plating Firepult Peak State ------------ > --- POWER ------------ Improved Deuterium Engine > --- PROPULSION ------- Armored Wheel Armored Huge Wheel > --- UTILITY ---------- Huge Storage Unit Layered Heavy Armor Plating Relay Coupler [NC] Relay Coupler [Sentry] Relay Coupler [Demolisher] Relay Coupler [Specialist] Relay Coupler [Heavy] > --- WEAPON ----------- Plasma Cannon Cooled Particle Cannon Improved Remote Datajack > --- INVENTORY -------- Improved Utility Shielding Layered Heavy Armor Plating Relay Coupler [NC] Relay Coupler [NC] Relay Coupler [Grunt] Relay Coupler [Grunt] Relay Coupler [Grunt] Relay Coupler [Sentry] Relay Coupler [Specialist] Relay Coupler [Hunter] Relay Coupler [Hunter] Relay Coupler [Heavy] Relay Coupler [Behemoth] Firepult Rocket Launcher Remote Datajack [Rating: 71] Favorites ----------- Power Heavy Ion Engine Engine Heavy Ion Engine Propulsion Armored Wheel Treads Light Treads Leg Aluminum Leg Wheel Armored Wheel Flight Unit Nuclear Pulse Thruster Utility High-capacity Storage Unit Device Improved Heat Sink Storage High-capacity Storage Unit Processor Targeting Computer Hackware Relay Coupler [NC] Protection Light Armor Plating Weapon Improved Light Cannon Energy Gun Gatling Laser Energy Cannon Phase Cannon Ballistic Gun Light Assault Rifle Ballistic Cannon Improved Light Cannon Launcher Rocket Launcher Special Weapon Remote Datajack Build | -11 -10 -10 -9 -9 -9 -8 -8 -8 -8 -8 -7 -7 -7 -7 -6 -6 ------- Run | Yrd Mat Min Mat Min Exi Min Mat Gar Mat Gar Fac Gar Fac Gar Fac Gar Slots Evolved 8 | . . . 2 . . . 2 . . . 2 . . . 2 . Power . | . . . . . . . . . . . . . . . . . Propulsion 1 | . . . 1 . . . . . . . . . . . . . Utility 6 | . . . 1 . . . 1 . . . 2 . . . 2 . Weapon 1 | . . . . . . . 1 . . . . . . . . . Parts Attached 135 | 4 11 5 19 . . 1 11 5 13 13 7 12 10 7 17 . Power 15 | 1 3 . 4 . . . . 1 1 2 . 1 2 . . . Engine 15 | 1 3 . 4 . . . . 1 1 2 . 1 2 . . . Core . | . . . . . . . . . . . . . . . . . Reactor . | . . . . . . . . . . . . . . . . . Propulsion 23 | 2 2 . 6 . . . 4 . 3 1 1 . 1 . 3 . Treads 12 | . 2 . 6 . . . 3 . . 1 . . . . . . Leg 2 | 2 . . . . . . . . . . . . . . . . Wheel 6 | . . . . . . . 1 . 3 . 1 . 1 . . . Hover . | . . . . . . . . . . . . . . . . . Flight 3 | . . . . . . . . . . . . . . . 3 . Utility 59 | 1 3 2 4 . . . 4 3 5 2 4 10 2 6 13 . Device 9 | . . 1 . . . . 2 1 3 . 2 . . . . . Storage 7 | 1 2 . 2 . . . 1 . . . . . . . 1 . Processor 1 | . . . . . . . . . . . 1 . . . . . Hackware 28 | . . . . . . . . . . . 1 8 2 6 11 . Protection 14 | . 1 1 2 . . . 1 2 2 2 . 2 . . 1 . Artifact . | . . . . . . . . . . . . . . . . . Weapon 38 | . 3 3 5 . . 1 3 1 4 8 2 1 5 1 1 . Energy Gun 12 | . 2 2 . . . . 1 . . 7 . . . . . . Energy Cannon 11 | . . . 1 . . . 1 . 4 1 1 . 3 . . . Ballistic Gun 2 | . 1 . 1 . . . . . . . . . . . . . Ballistic Cannon 5 | . . . 2 . . . 1 1 . . . . 1 . . . Launcher 4 | . . 1 1 . . 1 . . . . . . . 1 . . Special Weapon 4 | . . . . . . . . . . . 1 1 1 . 1 . Impact Weapon . | . . . . . . . . . . . . . . . . . Slashing Weapon . | . . . . . . . . . . . . . . . . . Piercing Weapon . | . . . . . . . . . . . . . . . . . Special Melee Weapon . | . . . . . . . . . . . . . . . . . Unidentified Prototypes 5 | . . . 2 . . . 1 . . . . . 2 . . . Parts Lost 30 | . 3 2 2 . . . 1 1 3 2 . 1 2 . 12 1 Power 5 | . 1 . 1 . . . . . . . . . 2 . 1 . Propulsion 6 | . 1 . . . . . . . . 2 . . . . 2 1 Utility 13 | . . 1 1 . . . 1 1 3 . . 1 . . 5 . Weapon 6 | . 1 1 . . . . . . . . . . . . 4 . Highest Loss Streak 10 | . 2 2 2 . . . 1 1 3 1 . 1 1 . 10 1 To Critical Strikes . | . . . . . . . . . . . . . . . . . Average Backups 16 | 5 8 11 14 20 19 19 18 19 19 18 18 17 17 17 15 2 Power 1 | . 2 3 3 2 2 2 2 1 . . . . . . . . Propulsion 2 | 2 4 4 4 6 6 5 5 4 1 . . . . . . . Utility 8 | . 1 1 2 3 4 4 4 7 11 12 10 12 14 14 11 1 Weapon 4 | 2 . 2 4 8 7 7 6 5 5 5 8 3 2 2 1 . Tool/Special . | . . . . . . . . . . . . . . . . . Unused Backups 46 | . . 1 3 . 2 1 2 12 2 7 . 2 1 5 7 1 Power 3 | . . 1 2 . . . . . . . . . . . . . Propulsion 5 | . . . 1 . . 1 1 1 1 . . . . . . . Utility 32 | . . . . . . . 1 11 1 7 . . 1 5 5 1 Weapon 4 | . . . . . 2 . . . . . . 2 . . . . Tool/Special 2 | . . . . . . . . . . . . . . . 2 . Average Slot Usage (%) 90 | . 89 97 97 100 100 100 94 98 97 90 91 91 82 83 75 58 Engine 8 | . 13 14 10 11 11 11 9 9 9 9 7 7 5 7 5 . Treads 12 | . 11 28 32 33 33 33 24 26 3 8 6 . . . . . Wheel 9 | . . . . . . . 2 . 23 18 15 23 15 15 7 . Device 7 | . . 1 10 11 11 11 13 17 17 9 14 . . . . . Storage 8 | . 14 14 11 11 11 11 9 9 9 9 7 7 7 7 5 . Hackware 9 | . . . . . . . . . . . 2 22 23 22 31 33 Protection 8 | . 5 11 9 11 11 11 10 9 7 9 7 6 7 7 7 6 Energy Gun 6 | . 20 15 14 . . . . . . 26 14 . . . . . Energy Cannon 6 | . . . 3 . . . . . 22 . 4 14 11 13 11 . Ballistic Cannon 6 | . . . 2 22 22 14 23 25 4 . . . 3 . . . Special Weapon 2 | . . . . . . . . . . . 3 6 7 7 4 4 Peak Build Rating 71 | 4 8 13 18 18 20 20 36 33 40 44 51 54 61 61 71 62 Average Rating 38 | 2 6 9 16 18 18 20 28 31 36 42 49 52 58 59 61 44 On Entrance 30 | . 4 8 13 18 18 20 20 33 30 40 44 50 53 59 61 40 Naked Turns . | . . . . . . . . . . . . . . . . . Heaviest Build 130 | 8 30 33 60 60 60 60 71 71 81 76 82 95 94 88 130 5 Greatest Support 66 | 20 40 40 60 60 60 60 66 66 64 36 36 36 40 40 40 12 Greatest Overweight (x) 5 | . 1 . . . . . 5 5 5 3 3 2 2 2 4 1 Average Overweight (x) 1 | . . . . . . . 1 . 1 2 2 2 1 1 2 . Largest Inventory Capacity 25 | 8 15 15 20 20 20 20 20 20 20 20 20 20 20 20 25 5 Average Capacity 18 | 7 11 15 16 20 20 20 20 20 20 20 20 20 20 20 22 5 Most Carried 21 | 8 10 12 20 20 20 20 20 20 20 20 20 20 20 20 21 5 Average Carried 18 | 6 8 11 14 20 19 20 19 19 19 19 19 19 19 19 17 4 Final Capacity 20 | 8 15 15 20 20 20 20 20 20 20 20 20 20 20 20 5 5 Final Carried 20 | 8 10 12 20 20 20 20 20 20 20 20 19 20 19 20 5 4 Class Distribution -------------------- 27% | Botlord-Skirmisher 27% | Skirmisher 17% | Scavenger-Mutant 12% | Mutant 4% | Bothacker-Skirmisher 3% | Scavenger-Skirmisher Dominant Class ---------------- Mutant | -10/Materials Mutant | -10/Mines Scavenger-Mutant | -9/Materials Scavenger-Mutant | -9/Mines Scavenger-Mutant | -9/Exiles Scavenger-Mutant | -8/Mines Skirmisher | -8/Materials Skirmisher | -8/Garrison Skirmisher | -8/Materials Skirmisher | -8/Garrison Gunner | -7/Factory Botlord-Skirmisher | -7/Garrison Botlord-Skirmisher | -7/Factory Botlord-Skirmisher | -7/Garrison Botlord-Skirmisher | -6/Factory Bothacker-Mutant | -6/Garrison Resources | -11 -10 -10 -9 -9 -9 -8 -8 -8 -8 -8 -7 -7 -7 -7 -6 -6 ----------- Run | Yrd Mat Min Mat Min Exi Min Mat Gar Mat Gar Fac Gar Fac Gar Fac Gar Matter Collected 4819 | 195 175 112 363 54 . 32 407 711 447 427 136 569 366 488 148 189 Remotely 386 | . . . . . . . 386 . . . . . . . . . Salvage Created 8130 | . 587 104 1048 144 . 1 434 555 741 1402 43 738 622 712 806 193 Parts 412 | . 20 5 67 6 . 4 28 36 40 70 4 36 25 42 29 . Haulers Intercepted 8 | . 1 . 3 . . . 1 . 3 . . . . . . . Recyclers Shooed 7 | . 2 . 2 . . . 1 . . . . . 2 . . . Parts Field Recycled . | . . . . . . . . . . . . . . . . . Retrieved Matter . | . . . . . . . . . . . . . . . . . Parts Self-Destructed . | . . . . . . . . . . . . . . . . . Prevented . | . . . . . . . . . . . . . . . . . Kills | -11 -10 -10 -9 -9 -9 -8 -8 -8 -8 -8 -7 -7 -7 -7 -6 -6 ------- Run | Yrd Mat Min Mat Min Exi Min Mat Gar Mat Gar Fac Gar Fac Gar Fac Gar Combat Hostiles Destroyed 201 | . 11 4 25 4 . 3 6 24 17 34 1 23 7 24 14 4 Guns 51 | . 11 . 10 . . . . . . 30 . . . . . . Cannons 73 | . . . 7 4 . . 5 16 6 . 1 8 7 10 8 1 AOE 72 | . . 4 8 . . 3 . 8 11 4 . 15 . 13 4 2 Classes Destroyed 17 | . 5 . 4 1 . . 2 . 2 1 . . 1 . 1 . Worker 8 | . . . 2 . . . 3 . . . . . 1 . 2 . Builder 7 | . . . 2 . . . 1 . . . . . . . 4 . Hauler 8 | . 1 . 3 . . . 1 . 3 . . . . . . . Recycler 9 | . 1 1 1 . . . 1 . . . . . 3 . 2 . Mechanic 1 | . . . . . . . 1 . . . . . . . . . Operator 2 | . . . . . . . . . 1 . . . 1 . . . Watcher 10 | . 2 . 3 . . . . . 2 3 . . . . . . Swarmer 57 | . 3 4 6 . . 3 . 7 . 5 . 15 . 10 4 . Grunt 78 | . 8 . 11 2 . . 2 5 11 15 . 5 4 10 3 2 Brawler 10 | . . . . 2 . . . 1 1 1 . 3 . 1 . 1 Duelist 7 | . . . 1 . . . . 1 1 3 . . . . . 1 Protector 3 | . . . . . . . . . 1 . . . . . 2 . Sentry 29 | . . . 7 . . . 3 7 3 5 . 1 2 1 . . Demolisher 1 | . . . . . . . . . . . . . . . 1 . Specialist 1 | . . . . . . . . . . . . . 1 . . . Hunter 4 | . . . . . . . . . . 2 . . . . 2 . Programmer 13 | . . . . . . . 1 3 . 3 1 1 . 2 2 . Sapper 1 | . . . . . . . . . . . . . . . . 1 Best Kill Streak 15 | . 2 3 15 4 . 3 7 10 14 6 1 9 3 7 11 2 Combat Bots Only 13 | . 2 3 8 4 . 3 4 10 13 4 1 9 2 7 3 2 Max Kills in Single Turn 6 | . 1 2 6 1 . 3 2 4 3 2 1 4 1 2 6 3 Gunslinging 1 | . . . . . . . . . . 1 . . . . . . Exploded 4 | . . 2 2 . . 3 . 4 3 2 . 4 . 2 2 1 Melee . | . . . . . . . . . . . . . . . . . Uniques/NPCs Destroyed . | . . . . . . . . . . . . . . . . . Combat | -11 -10 -10 -9 -9 -9 -8 -8 -8 -8 -8 -7 -7 -7 -7 -6 -6 -------- Run | Yrd Mat Min Mat Min Exi Min Mat Gar Mat Gar Fac Gar Fac Gar Fac Gar Hostile Shots Fired 853 | . 76 14 74 . . 10 42 77 99 65 4 78 32 53 210 19 Missed 269 | . 28 5 21 . . 4 15 23 30 13 1 24 15 13 69 8 Hits 584 | . 48 9 53 . . 6 27 54 69 52 3 54 17 40 141 11 Melee 13 | . . . . . . . . 4 . 2 . 3 . . 4 . Projectile 571 | . 48 9 53 . . 6 27 50 69 50 3 51 17 40 137 11 AOE 4 | . . . . . . . . . . . . . . . 4 . Critical Strikes 23 | . 1 . 2 . . . . 3 4 2 . 1 . 4 5 1 Part Disruptions 2 | . . . . . . . . 1 . . . . . . 1 . Damage Taken 9532 | . 577 101 662 . . 48 407 818 1076 840 53 1025 589 719 2433 184 Core 1631 | . 87 8 110 . . . 45 124 74 81 . 66 79 106 803 48 Absorbed by Shields 194 | . . . . . . . . 31 . . . . . 27 136 . Redirected to Shielding 62 | . . . 49 . . . . . . . . . . . 13 . Ignored by Resistances 120 | . . . . . . . . . . 112 . 8 . . . . Regen/Repaired (Parts) 1363 | . . . 32 . . . 71 . . . 61 52 287 448 412 . Core Remaining (%) 67 | 100 . 62 . . . 72 . . . 41 . . . 64 . . Volleys Fired 620 | . 51 5 61 5 . 2 21 59 38 59 5 112 52 80 59 11 Largest 3 | . 2 2 2 2 . 1 3 3 3 3 2 2 2 2 2 1 Hottest 250 | . 80 103 131 66 . 33 250 99 195 240 170 170 165 110 110 250 Shots Fired 1066 | . 101 6 97 10 . 2 56 135 95 158 7 134 75 96 83 11 Gun 314 | . 101 2 58 . . . . . . 153 . . . . . . Cannon 574 | . . . 30 10 . . 56 127 86 . 4 84 49 67 57 4 Launcher 62 | . . 4 9 . . 2 . 8 9 5 . 7 . 15 3 . Special 116 | . . . . . . . . . . . 3 43 26 14 23 7 Kinetic 249 | . 28 . 7 10 . . 53 127 18 . . . 6 . . . Thermal 616 | . 50 2 81 . . . 3 . 68 153 4 84 43 67 57 4 Explosive 62 | . . 4 9 . . 2 . 8 9 5 . 7 . 15 3 . Electromagnetic 23 | . 23 . . . . . . . . . . . . . . . Robot Hit Streak 27 | . 11 9 12 5 . . 6 16 8 14 4 27 8 11 11 7 Robot Miss Streak 7 | . 3 . 3 1 . 2 4 7 6 7 2 3 3 3 3 1 Penetration Max . | . . . . . . . . . . . . . . . . . Secondary Targets 6 | . . . 1 . . . . . . 5 . . . . . . Max Gunslinging Chain 1 | . . . 1 . . . . . . 1 . . . . . . Shots Hit Robots 603 | . 65 2 64 8 . . 25 64 46 97 4 71 49 51 51 6 Core Hits 404 | . 29 5 44 5 . 4 17 39 39 90 1 30 13 48 32 8 Critical Kills 2 | . . . . . . . . . . . . . . . 2 . Critical Parts Destroyed . | . . . . . . . . . . . . . . . . . Critical Strikes 10 | . 1 . . . . . 3 3 . . . . 1 . 2 . Meltdown 2 | . . . . . . . . . . . . . . . 2 . Blast 7 | . . . . . . . 3 3 . . . . 1 . . . Corrupt 1 | . 1 . . . . . . . . . . . . . . . Melee Attacks . | . . . . . . . . . . . . . . . . . Impact . | . . . . . . . . . . . . . . . . . Slashing . | . . . . . . . . . . . . . . . . . Piercing . | . . . . . . . . . . . . . . . . . Sneak Attacks . | . . . . . . . . . . . . . . . . . Combat Hostiles . | . . . . . . . . . . . . . . . . . Follow-up Attacks . | . . . . . . . . . . . . . . . . . Damage Inflicted 19924 | . 764 322 2198 192 . 251 794 2247 2177 2477 72 1981 914 2607 2698 230 Guns 3560 | . 721 18 674 . . . . . . 2147 . . . . . . Cannons 7951 | . . . 331 192 . . 631 1470 1026 . 72 1066 914 971 1247 31 Explosions 8324 | . 29 301 1151 . . 244 163 777 1128 330 . 915 . 1636 1451 199 Melee . | . . . . . . . . . . . . . . . . . Ramming 89 | . 14 3 42 . . 7 . . 23 . . . . . . . Kinetic 2846 | . 164 . 65 192 . . 631 1470 192 . . . 132 . . . Thermal 8833 | . 363 18 940 . . . 163 . 834 2147 72 1066 782 971 1247 230 Explosive 7933 | . . 301 1151 . . 244 . 777 1128 330 . 915 . 1636 1451 . Electromagnetic 223 | . 223 . . . . . . . . . . . . . . . Impact . | . . . . . . . . . . . . . . . . . Slashing . | . . . . . . . . . . . . . . . . . Piercing . | . . . . . . . . . . . . . . . . . Highest Corruption 12 | . 2 2 . . . . 2 6 8 12 2 3 7 7 5 5 Average Corruption 5 | . 2 2 . . . . 1 2 7 11 2 3 4 7 1 5 Corruption Purged . | . . . . . . . . . . . . . . . . . Corruption Blocked . | . . . . . . . . . . . . . . . . . Effects 241 | . 1 7 . . . . 2 22 26 71 4 24 33 38 5 8 Message Errors 55 | . . 2 . . . . . 6 5 15 . 11 7 5 2 2 Matter Fused 71 | . . 2 . . . . . 8 9 21 2 1 11 12 1 4 Heat Flow Errors 23 | . 1 . . . . . . 1 2 6 . 3 3 6 . 1 Energy Discharges 24 | . . 1 . . . . . . 5 9 . 1 4 3 . 1 Parts Rejected 3 | . . . . . . . 1 . . 1 . . . . 1 . Parts Fused 3 | . . . . . . . . 1 . 1 1 . . . . . Data Loss (minor) 29 | . . 1 . . . . . 2 3 5 . 5 3 9 1 . Data Loss (major) 10 | . . . . . . . . 2 . 1 . 3 2 2 . . Misfires 7 | . . . . . . . . 1 1 3 . . 2 . . . Alerts 6 | . . 1 . . . . . . . 3 1 . . 1 . . Misdirections 1 | . . . . . . . . . . 1 . . . . . . Weapon Failures 9 | . . . . . . . 1 1 1 5 . . 1 . . . Overload Shots 8 | . . . . . . . . . . . . . . . 8 . Overflow Damage 732 | . . 27 73 . . 35 6 41 44 . . 34 3 27 442 . Projectiles 233 | . . . . . . . . 30 37 . . 33 3 12 118 . Explosions 499 | . . 27 73 . . 35 6 11 7 . . 1 . 15 324 . Melee . | . . . . . . . . . . . . . . . . . Knockbacks 27 | . . . . . . . 6 19 1 . . . 1 . . . Impact 1 | . . . . . . . . . 1 . . . . . . . Kinetic 23 | . . . . . . . 5 17 . . . . 1 . . . Secondary 3 | . . . . . . . 1 2 . . . . . . . . Self-Inflicted Damage 195 | . . . 33 . . . . 12 11 75 . . . 64 . . Shots 7 | . . . 2 . . . . 1 . 2 . . . 2 . . Rammed 9 | . . 1 5 . . 1 . . 2 . . . . . . . Targets Rammed 13 | . 3 1 6 . . 1 . . 2 . . . . . . . Kicked 3 | . 3 . . . . . . . . . . . . . . . Crushed 1 | . . . 1 . . . . . . . . . . . . . Highest Temperature 419 | . 240 42 168 . . . 318 121 241 373 125 348 419 319 296 193 Average Temperature 97 | . 62 22 34 . . . 93 28 68 102 70 113 125 104 73 103 Received Heat Transfer 2449 | . 312 . 195 . . . 144 153 666 252 . 114 81 234 271 27 Effects 22 | . . . . . . . . . 1 2 . 8 9 2 . . Shutdowns 1 | . . . . . . . . . . . . 1 . . . . Energy Bleed 5 | . . . . . . . . . 1 . . 3 . 1 . . Interference 12 | . . . . . . . . . . 2 . 4 5 1 . . Damage (major) 4 | . . . . . . . . . . . . . 4 . . . Siege Activations . | . . . . . . . . . . . . . . . . . Martial Activations . | . . . . . . . . . . . . . . . . . Shielding Activations . | . . . . . . . . . . . . . . . . . Robots Disrupted . | . . . . . . . . . . . . . . . . . Combat Hostiles . | . . . . . . . . . . . . . . . . . Robots Corrupted . | . . . . . . . . . . . . . . . . . Combat Hostiles . | . . . . . . . . . . . . . . . . . Parts Fried . | . . . . . . . . . . . . . . . . . Impact Corruptions . | . . . . . . . . . . . . . . . . . Robots Melted 6 | . . . . . . . 1 . . . . . . 1 2 2 Combat Hostiles 5 | . . . . . . . 1 . . . . . . 1 2 1 Parts Melted 31 | . . . . . . . 2 . 1 12 . 2 2 1 8 3 Heat Transferred 16610 | . 800 37 1966 . . . 660 . 1147 4750 74 1258 1257 1418 1643 1600 Parts Sabotaged . | . . . . . . . . . . . . . . . . . Parts Stolen . | . . . . . . . . . . . . . . . . . Parts Stripped . | . . . . . . . . . . . . . . . . . Power Chain Reactions 1 | . 1 . . . . . . . . . . . . . . . Alert | -11 -10 -10 -9 -9 -9 -8 -8 -8 -8 -8 -7 -7 -7 -7 -6 -6 ------- Run | Yrd Mat Min Mat Min Exi Min Mat Gar Mat Gar Fac Gar Fac Gar Fac Gar Maximum Alert Level 5 | . . . 2 . . . . 4 3 4 3 5 4 5 5 4 Low Security (%) 28 | 100 100 100 73 100 . 100 100 11 . . . . . . . . Level 1 2 | . . . 5 . . . . 11 7 . . . . . . . Level 2 14 | . . . 20 . . . . 15 77 19 25 27 . . . . Level 3 16 | . . . . . . . . 45 15 36 75 9 22 5 . . Level 4 28 | . . . . . . . . 15 . 43 . 39 77 18 98 100 Level 5 9 | . . . . . . . . . . . . 23 . 75 1 . High Security . | . . . . . . . . . . . . . . . . . Max Security . | . . . . . . . . . . . . . . . . . Peak Influence 2366 | . 77 86 486 183 . 86 130 1195 746 1552 814 1894 1527 2366 1612 1323 Initial 1241 | . . 4 24 183 . . . 74 582 484 814 453 994 999 1241 1110 Average 811 | . 25 31 123 46 . 20 61 732 528 1073 735 1213 1334 1803 1266 1179 Influence Increases 10411 | . 325 175 848 90 . 86 304 1171 610 1088 32 1621 1196 1467 1145 253 Destroy 0b10 Robot/C 5340 | . 220 100 500 80 . 60 120 560 320 680 20 660 520 700 620 180 Destroy 0b10 Robot/NC 320 | . 20 5 55 . . . 35 . 35 15 . . 95 . 60 . Destroy Leader 690 | . 26 20 152 10 . 10 42 10 90 40 10 30 90 60 80 20 Allied During Kill 1162 | . . 7 . . . . . 42 . . . 309 479 179 138 8 Successful Hack 99 | . 7 . 14 . . . 3 21 14 14 . 7 5 14 . . Disable Machine 300 | . . 15 60 . . . 60 . 15 . . 60 . 15 60 15 Anti-Garrison Action 1350 | . . . . . . . . 400 . 200 . 400 . 350 . . Destroy Structure 775 | . 7 28 67 . . 16 44 108 61 94 2 140 7 149 52 . Lose Combat Pursuer 375 | . 45 . . . . . . 30 75 45 . 15 . . 135 30 Influence Decreases 9118 | . 313 123 440 496 66 86 190 90 1059 282 936 375 1662 529 1925 546 Entered New Map 5181 | . . 8 40 289 66 . . 40 613 262 738 195 900 429 1125 476 Time Decay 2763 | . 293 95 380 207 . 86 186 . 416 . 198 . 522 . 380 . Lost Part 284 | . 20 20 20 . . . 4 10 30 20 . 10 20 . 120 10 Lost Ally 890 | . . . . . . . . 40 . . . 170 220 100 300 60 Squads Dispatched 36 | . 1 . 4 1 . . 1 . 5 . . . 10 . 14 . Investigation 2 | . 1 . 1 . . . . . . . . . . . . . Extermination 5 | . . . . . . . . . . . . . 3 . 2 . Reinforcement 14 | . . . 2 . . . . . 3 . . . 2 . 7 . Assault 12 | . . . 1 1 . . . . 2 . . . 4 . 4 . Garrison 3 | . . . . . . . 1 . . . . . 1 . 1 . Intercept . | . . . . . . . . . . . . . . . . . Searches Triggered . | . . . . . . . . . . . . . . . . . Construction Impeded 3 | . . . . . . . . . 1 . . . . . 2 . Haulers Reinforced 1 | . . . . . . . . . . . . . 1 . . . Active Scanning Responses . | . . . . . . . . . . . . . . . . . Cargo Convoy Interrupts 1 | . . . . . . . . . . . . . . . 1 . Stealth | -11 -10 -10 -9 -9 -9 -8 -8 -8 -8 -8 -7 -7 -7 -7 -6 -6 --------- Run | Yrd Mat Min Mat Min Exi Min Mat Gar Mat Gar Fac Gar Fac Gar Fac Gar Distress Signals 19 | . . . 2 . . . 1 . 3 1 . . 4 . 8 . Communications Jammed . | . . . . . . . . . . . . . . . . . Distress Signals . | . . . . . . . . . . . . . . . . . Times Spotted 378 | . 20 5 32 3 . 6 7 27 32 36 2 48 32 40 72 16 Peak Tracking Total 16 | . 4 3 4 3 . 3 4 4 16 4 1 7 5 7 11 5 Tactical Retreats 15 | . 2 . . . . . . 1 3 2 . 1 . . 5 1 Traps | -11 -10 -10 -9 -9 -9 -8 -8 -8 -8 -8 -7 -7 -7 -7 -6 -6 ------- Run | Yrd Mat Min Mat Min Exi Min Mat Gar Mat Gar Fac Gar Fac Gar Fac Gar Traps Triggered 40 | . 2 1 1 . . . 2 3 1 7 . 8 4 3 2 6 Indirectly . | . . . . . . . . . . . . . . . . . Trap Hack Attempts . | . . . . . . . . . . . . . . . . . Triggered . | . . . . . . . . . . . . . . . . . Disarmed . | . . . . . . . . . . . . . . . . . Reprogrammed . | . . . . . . . . . . . . . . . . . Reused . | . . . . . . . . . . . . . . . . . Traps Extracted . | . . . . . . . . . . . . . . . . . Installed . | . . . . . . . . . . . . . . . . . Triggered . | . . . . . . . . . . . . . . . . . Machines | -11 -10 -10 -9 -9 -9 -8 -8 -8 -8 -8 -7 -7 -7 -7 -6 -6 ---------- Run | Yrd Mat Min Mat Min Exi Min Mat Gar Mat Gar Fac Gar Fac Gar Fac Gar Machines Disabled 40 | . . 1 4 . . . 4 6 1 3 . 10 . 6 4 1 Max in Single Turn 2 | . . . 2 . . . 2 2 1 2 . 1 . 1 2 . Garrison Access 1 | . . . . . . . . . . . . . . . 1 . Garrison Relay 17 | . . . . . . . . 4 . 1 . 6 . 5 . 1 Phase Generator 3 | . . . . . . . . 1 . 1 . . . . . 1 Machines Repaired . | . . . . . . . . . . . . . . . . . Machines Dismantled . | . . . . . . . . . . . . . . . . . Machines Sabotaged . | . . . . . . . . . . . . . . . . . Overloaded Fab Kills . | . . . . . . . . . . . . . . . . . Hacking | -11 -10 -10 -9 -9 -9 -8 -8 -8 -8 -8 -7 -7 -7 -7 -6 -6 --------- Run | Yrd Mat Min Mat Min Exi Min Mat Gar Mat Gar Fac Gar Fac Gar Fac Gar Machines Accessed 42 | . 5 1 10 . 2 . 2 4 4 2 2 3 4 1 1 1 Terminals 27 | . 3 . 8 . . . . 4 3 2 . 3 2 1 . 1 Fabricators . | . . . . . . . . . . . . . . . . . Repair Stations 3 | . . . 1 . . . 1 . . . 1 . . . . . Recycling Units 4 | . 2 . 1 . . . . . . . . . 1 . . . Scanalyzers . | . . . . . . . . . . . . . . . . . Garrison Access 5 | . . . . . . . 1 . 1 . 1 . 1 . 1 . Total Hacks 80 | . 13 1 25 . 5 . 4 6 8 2 2 5 6 1 1 1 Successful 45 | . 6 1 11 . 5 . 4 2 5 1 2 2 4 1 1 . Failed 35 | . 7 . 14 . . . . 4 3 1 . 3 2 . . 1 Catastrophic 9 | . 1 . 2 . . . . 1 1 1 . 1 1 . . 1 Database Lockouts . | . . . . . . . . . . . . . . . . . Manual 22 | . 6 . 9 . 1 . 1 . 3 . 1 . 1 . . . Terminals 54 | . 8 . 21 . . . . 6 7 2 . 5 3 1 . 1 Fabricators . | . . . . . . . . . . . . . . . . . Repair Stations 5 | . . . 2 . . . 2 . . . 1 . . . . . Recycling Units 9 | . 5 . 2 . . . . . . . . . 2 . . . Scanalyzers . | . . . . . . . . . . . . . . . . . Garrison Access 6 | . . . . . . . 2 . 1 . 1 . 1 . 1 . Terminal Hacks 23 | . 2 1 6 . 5 . . 2 2 1 . 2 1 1 . . Record 4 | . . . . . 4 . . . . . . . . . . . Prototype ID Bank 2 | . . . . . . . . . 1 . . . 1 . . . Open Door 3 | . . 1 . . . . . 1 . . . 1 . . . . Branch Access Points 1 | . . . 1 . . . . . . . . . . . . . Emergency Access Points 2 | . . . . . . . . . . . . 1 . 1 . . Alert Level 3 | . . . 3 . . . . . . . . . . . . . Locate Traps 2 | . . . 1 . . . . . 1 . . . . . . . Registered Components 1 | . 1 . . . . . . . . . . . . . . . Zone Layout 2 | . 1 . 1 . . . . . . . . . . . . . Patrol Navigation 2 | . . . . . . . . 1 . 1 . . . . . . Proto ID Catalog 1 | . . . . . 1 . . . . . . . . . . . Fabricator Hacks . | . . . . . . . . . . . . . . . . . Repair Station Hacks 4 | . . . 2 . . . 2 . . . . . . . . . Scan Component 2 | . . . 1 . . . 1 . . . . . . . . . Repair 2 | . . . 1 . . . 1 . . . . . . . . . Recycling Unit Hacks 3 | . 1 . 1 . . . . . . . . . 1 . . . Retrieve Components 3 | . 1 . 1 . . . . . . . . . 1 . . . Scanalyzer . | . . . . . . . . . . . . . . . . . Garrison Access Hacks 5 | . . . . . . . 1 . 1 . 1 . 1 . 1 . Unlock Access 5 | . . . . . . . 1 . 1 . 1 . 1 . 1 . Unauthorized Hacks 10 | . 3 . 2 . . . 1 . 2 . 1 . 1 . . . Terminals 8 | . 3 . 2 . . . . . 2 . . . 1 . . . Botnet 8 | . 3 . 2 . . . . . 2 . . . 1 . . . Fabricators . | . . . . . . . . . . . . . . . . . Repair Stations 1 | . . . . . . . . . . . 1 . . . . . Mechanics 1 | . . . . . . . . . . . 1 . . . . . Recycling Units . | . . . . . . . . . . . . . . . . . Scanalyzers . | . . . . . . . . . . . . . . . . . Garrison Access 1 | . . . . . . . 1 . . . . . . . . . Restock 1 | . . . . . . . 1 . . . . . . . . . Data Cores Recovered 2 | . . . . . . . . . 1 . . . 1 . . . Used . | . . . . . . . . . . . . . . . . . Hacking Detections 31 | . 4 . 8 . . . 2 4 3 2 1 2 4 . . 1 Full Trace Events 1 | . . . . . . . . 1 . . . . . . . . Feedback Events . | . . . . . . . . . . . . . . . . . Feedback Blocked . | . . . . . . . . . . . . . . . . . Robot Schematics Acquired . | . . . . . . . . . . . . . . . . . Robots Built . | . . . . . . . . . . . . . . . . . Authchips . | . . . . . . . . . . . . . . . . . Time . | . . . . . . . . . . . . . . . . . Total Robot Build Rating . | . . . . . . . . . . . . . . . . . Part Schematics Acquired . | . . . . . . . . . . . . . . . . . Parts Built . | . . . . . . . . . . . . . . . . . Authchips . | . . . . . . . . . . . . . . . . . Time . | . . . . . . . . . . . . . . . . . Total Part Build Rating . | . . . . . . . . . . . . . . . . . Parts Repaired 2 | . . . 1 . . . 1 . . . . . . . . . Time 70 | . . . 38 . . . 32 . . . . . . . . . Parts Recycled . | . . . . . . . . . . . . . . . . . Recycled Matter . | . . . . . . . . . . . . . . . . . Retrieved Matter . | . . . . . . . . . . . . . . . . . Retrieved Components 21 | . 9 . 10 . . . . . . . . . 2 . . . Parts Scanalyzed . | . . . . . . . . . . . . . . . . . Part Schematics Acquired . | . . . . . . . . . . . . . . . . . Parts Damaged . | . . . . . . . . . . . . . . . . . Bothacking | -11 -10 -10 -9 -9 -9 -8 -8 -8 -8 -8 -7 -7 -7 -7 -6 -6 ------------ Run | Yrd Mat Min Mat Min Exi Min Mat Gar Mat Gar Fac Gar Fac Gar Fac Gar Used RIF Installer 6 | . . . . . . . . 2 . 1 . 1 . 1 . 1 Coupler Efficiency 2 | . . . . . . . . 1 . 1 . . . . . . Zone Cloak 1 | . . . . . . . . . . . . . . . . 1 Autooverride 1 | . . . . . . . . . . . . . . 1 . . Autoassimilate 1 | . . . . . . . . . . . . 1 . . . . Robots Hacked 61 | . . . . . . . . . . . 1 12 12 10 16 10 Non-combat 12 | . . . . . . . . . . . 1 . 6 1 4 . Combat 49 | . . . . . . . . . . . . 12 6 9 12 10 Autooverrided 5 | . . . . . . . . . . . . . . . 2 3 Autoassimilated 4 | . . . . . . . . . . . . . . 1 1 2 Robot Hacks Applied 53 | . . . . . . . . . . . 1 13 12 9 13 5 parse_system 2 | . . . . . . . . . . . . 1 . . . 1 drop_inventory 5 | . . . . . . . . . . . . . 4 . 1 . map_route 1 | . . . . . . . . . . . . . 1 . . . amplify_resonance 3 | . . . . . . . . . . . . 1 . 1 . 1 reboot_system 3 | . . . . . . . . . . . . 1 1 . . 1 overwrite_iff 8 | . . . . . . . . . . . . 2 . 1 3 2 formatsys_low 5 | . . . . . . . . . . . 1 . 1 1 2 . formatsys_high 25 | . . . . . . . . . . . . 8 5 5 7 . formatsys_deep 1 | . . . . . . . . . . . . . . 1 . . Relay Couplers Released 78 | . . . . . . . 4 16 . 3 . 26 4 19 3 3 Machine Destruction 70 | . . . . . . . . 16 . 3 . 26 . 19 3 3 Programmers 8 | . . . . . . . 4 . . . . . 4 . . . Attached 28 | . . . . . . . . . . . 1 8 2 6 11 . Fabnet Peak Effective % . | . . . . . . . . . . . . . . . . . Robots Rewired 12 | . . . . . . . . . . . . 12 . . . . Allies Hacked 1 | . . . . . . . . . . . . . . 1 . . Hacks Repelled . | . . . . . . . . . . . . . . . . . Allies | -11 -10 -10 -9 -9 -9 -8 -8 -8 -8 -8 -7 -7 -7 -7 -6 -6 -------- Run | Yrd Mat Min Mat Min Exi Min Mat Gar Mat Gar Fac Gar Fac Gar Fac Gar Total Allies 69 | . . 1 . 1 . . . 2 . . 1 24 6 12 15 7 Largest Group 16 | . . 1 1 1 . . . 2 . . 1 13 16 8 9 2 Highest-Rated Group 527 | . . 31 31 31 . . . 45 . . 14 453 527 194 318 58 Highest-Rated Ally 90 | . . 31 31 31 . . . 25 . . 14 80 80 32 90 29 Total Orders 10 | . . . . . . . . . . . 1 1 1 3 4 . STAY 1 | . . . . . . . . . . . . . . 1 . . AID 9 | . . . . . . . . . . . 1 1 1 2 4 . Ally Attacks 414 | . . 4 . 4 . . . 7 . . . 58 136 62 110 33 Total Damage 10832 | . . 42 . 42 . . . 247 . . . 1611 3979 763 3672 476 Kills 91 | . . 1 . . . . . 4 . . . 10 34 11 26 5 Allies Corrupted 4 | . . . . . . . . . . . . 1 3 . . . Allies Melted 3 | . . . . . . . . . . . . . . . 1 2 Intel | -11 -10 -10 -9 -9 -9 -8 -8 -8 -8 -8 -7 -7 -7 -7 -6 -6 ------- Run | Yrd Mat Min Mat Min Exi Min Mat Gar Mat Gar Fac Gar Fac Gar Fac Gar Active Infowar (turns) . | . . . . . . . . . . . . . . . . . Robot Analysis Total . | . . . . . . . . . . . . . . . . . Derelict Logs Recovered 2 | . . 1 . 1 . . . . . . . . . . . . Drone Launches . | . . . . . . . . . . . . . . . . . Drone Recoveries . | . . . . . . . . . . . . . . . . . Exploration | -11 -10 -10 -9 -9 -9 -8 -8 -8 -8 -8 -7 -7 -7 -7 -6 -6 ------------- Run | Yrd Mat Min Mat Min Exi Min Mat Gar Mat Gar Fac Gar Fac Gar Fac Gar Turns Passed 14811 | 59 874 252 1435 864 354 366 426 1624 1017 1737 400 1442 1446 1353 881 281 Spaces Moved 8462 | 44 453 133 688 529 221 224 154 890 536 898 234 788 1013 860 516 281 Core 152 | 11 . . . . . . . . . . . . . . 109 32 Treads 2994 | . 173 133 688 529 221 224 115 854 53 4 . . . . . . Legs 313 | 33 280 . . . . . . . . . . . . . . . Wheels 4714 | . . . . . . . 39 36 483 894 234 788 1013 860 367 . Hover . | . . . . . . . . . . . . . . . . . Flight 289 | . . . . . . . . . . . . . . . 40 249 Fastest Speed 34 | 50 120 160 160 160 160 160 145 145 105 105 120 120 110 110 34 37 Average Speed 133 | 102 142 160 160 160 160 160 172 151 121 134 134 120 120 124 119 44 Slowest Speed 400 | 120 190 160 160 160 160 160 400 225 165 400 135 120 125 125 160 100 Overloaded Moves . | . . . . . . . . . . . . . . . . . Propulsion Burnouts . | . . . . . . . . . . . . . . . . . Robots Hopped 2 | . . . . . . . . . . . . . . . . 2 Potential Cave-ins . | . . . . . . . . . . . . . . . . . Cave-ins Triggered . | . . . . . . . . . . . . . . . . . Exploration Rate (%) 53 | 3 76 29 76 99 60 53 18 90 54 86 5 92 27 82 18 41 Regions Visited 16 Branch Regions 4 Pre-discovered Areas 1 | . . . . . 1 . . . . . . . . . . . Known Exits Taken 7 | . . . 1 . . 1 1 . 1 . 1 . 1 . 1 . Unknown Exits Taken 5 | 1 1 1 . 1 1 . . . . . . . . . . . Scrap Searched 2 | . . . . 1 . 1 . . . . . . . . . . Spaces Dug 125 | . . 23 36 . . . 8 4 4 11 . 11 1 27 . . Terrain Destroyed 656 | . 6 36 69 . . 18 44 97 102 121 2 21 5 84 50 1 Melee . | . . . . . . . . . . . . . . . . . Projectile 50 | . . . 1 . . . 6 . 32 . 2 . 5 . 4 . AOE 606 | . 6 36 68 . . 18 38 97 70 121 . 21 . 84 46 1 Terrain Rammed . | . . . . . . . . . . . . . . . . . Walls Destroyed . | . . . . . . . . . . . . . . . . . Machines Disabled . | . . . . . . . . . . . . . . . . . Actions | -11 -10 -10 -9 -9 -9 -8 -8 -8 -8 -8 -7 -7 -7 -7 -6 -6 --------- Run | Yrd Mat Min Mat Min Exi Min Mat Gar Mat Gar Fac Gar Fac Gar Fac Gar Total 11007 | 57 586 164 920 537 223 229 272 1068 824 1275 313 1170 1177 1056 706 430 Wait 1296 | . 53 13 110 2 . . 60 54 214 242 61 164 87 73 96 67 Move 8446 | 43 452 132 687 528 220 223 153 889 536 897 234 787 1012 859 516 278 Hop 1 | . . . . . . . . . . . . . . . . 1 Pick Up 115 | 10 8 4 15 1 1 1 7 18 5 14 1 11 5 9 5 . Fast Attach 59 | 2 4 2 5 . . . 8 8 9 4 4 2 3 1 7 . Attach 48 | 2 5 1 3 . . . 5 2 . 3 1 5 3 2 11 5 Detach 10 | . 1 . . . . . 2 . . . . 1 . 1 1 4 Swap 105 | . 4 4 18 . . 1 7 11 7 15 3 16 6 9 4 . Drop 129 | . 5 2 15 1 2 1 9 24 13 20 4 12 9 6 6 . Fire 620 | . 51 5 61 5 . 2 21 59 38 59 5 112 52 80 59 11 Melee . | . . . . . . . . . . . . . . . . . Ram 2 | . . . . . . . . . 2 . . . . . . . Kick 3 | . 3 . . . . . . . . . . . . . . . Crush 8 | . . 1 6 . . 1 . . . . . . . . . . Escape Stasis 157 | . . . . . . . . 3 . 21 . 56 . 14 . 63 Rewire 8 | . . . . . . . . . . . . 4 . 2 1 1 Trap . | . . . . . . . . . . . . . . . . . Miscellaneous . | . . . . . . . . . . . . . . . . . Route ------- -11/Scrapyard -10/Materials (discovered 4 exits: *Mat x3 / *Min) -10/Mines -9/Materials (discovered 4 exits: *Mat x2 / *Min / *Sto) -9/Mines (discovered 3 exits: *Mat x2 / *Exi) -9/Exiles -8/Mines -8/Materials -8/Garrison (discovered 2 exits: *Mat x2) -8/Materials -8/Garrison (discovered 3 exits: *Fac x3) -7/Factory -7/Garrison (discovered 3 exits: *Fac x3) -7/Factory (discovered 4 exits: *Fac x2 / [*Low] / Gar) -7/Garrison (discovered 3 exits: *Fac x3) -6/Factory -6/Garrison (discovered 1 exit: [*Fac]) History --------- Turn | Location | Event 13 | -11/Scrapyard | Discovered new exit (range 16) 60 | -11/Scrapyard | Entered Materials 303 | -10/Materials | Build established: Mutant 347 | -10/Materials | Discovered new exit (range 5) 653 | -10/Materials | Discovered new exit (range 3) 862 | -10/Materials | Discovered new exit (range 15) 901 | -10/Materials | Discovered new exit (range 15) 934 | -10/Materials | Entered Mines 937 | -10/Mines | Received a Mining Laser from a helpful Derelict 944 | -10/Mines | Received a Rocket Launcher from a helpful Derelict 1044 | -10/Mines | Learned location of 1 exit from Materials 1053 | -10/Mines | Met a Derelict who couldn't figure out how to use a Trap Extractor 1137 | -10/Mines | Discovered new exit (range 14) 1186 | -10/Mines | Entered Materials 1186 | -9/Materials | Accompanied by 1 ally 1186 | -9/Materials | Evolved 2 slots: Propulsion x1, Utility x1 1187 | -9/Materials | Identified exit to Materials 1660 | -9/Materials | Build established: Scavenger-Mutant 1694 | -9/Materials | Discovered new exit (range 7) 1816 | -9/Materials | Repaired Imp. Heat Sink 1979 | -9/Materials | Discovered exit to Materials (range 8) 2210 | -9/Materials | Identified exit to Mines 2210 | -9/Materials | Identified exit to Storage 2293 | -9/Materials | Destroyed 8 combat bots 2386 | -9/Materials | First assault squad dispatched 2621 | -9/Materials | Entered Mines 2622 | -9/Mines | Met a Derelict testing a Signal Generator 2658 | -9/Mines | Found a damaged Exp. Sensor Array with a note attached 2877 | -9/Mines | Discovered exit to Materials (range 11) 3002 | -9/Mines | Learned Materials emergency access door positions 3175 | -9/Mines | YI-UF0 nonchalantly dropped a Grenade Launcher on the ground 3278 | -9/Mines | Discovered exit to Materials (range 16) 3478 | -9/Mines | Deemed a non-threat by the Exiles lab entrance 3478 | -9/Mines | Discovered new exit (range 5) 3485 | -9/Mines | Entered Exiles 3524 | -9/Exiles | Met 8R-AWN 3553 | -9/Exiles | Met EX-HEX 3597 | -9/Exiles | Met EX-BIN 3615 | -9/Exiles | Aligned with FarCom system 3617 | -9/Exiles | Given EX-Vault access code 3655 | -9/Exiles | Opened EX-Vault 3666 | -9/Exiles | Found Firepult 3702 | -9/Exiles | Warned to stay clear of 0b10 Research branches 3743 | -9/Exiles | Met EX-DEC 3753 | -9/Exiles | Learned location of Zion (-6) 3815 | -9/Exiles | Discovered new exit (range 14) 3839 | -9/Exiles | Left Exiles lab with Firepult 3839 | -9/Exiles | Entered Mines 4194 | -8/Mines | Discovered exit to Materials (range 7) 4205 | -8/Mines | Entered Materials 4205 | -8/Materials | Evolved 2 slots: Utility x1, Weapon x1 4360 | -8/Materials | Repaired Med. Armor Plating 4470 | -8/Materials | Identified exit to Garrison 4576 | -8/Materials | Garrison activated, responded to threat 4631 | -8/Materials | Entered Garrison 4699 | -8/Garrison | Build established: Skirmisher 4758 | -8/Garrison | Triggered checkpoint 4820 | -8/Garrison | Rescued a captive Derelict 4821 | -8/Garrison | Rescued a captive Derelict 4996 | -8/Garrison | Triggered checkpoint 5005 | -8/Garrison | Triggered checkpoint 5027 | -8/Garrison | Triggered checkpoint 5044 | -8/Garrison | Triggered checkpoint 5086 | -8/Garrison | Destroyed 10 combat bots 5257 | -8/Garrison | Phase Generator disabled 5345 | -8/Garrison | Garrison Relay disabled 5445 | -8/Garrison | Installed Relay Interface Framework 5558 | -8/Garrison | Discovered new exit (range 10) 5571 | -8/Garrison | Triggered checkpoint 5617 | -8/Garrison | Expanded RIF knowledge: Coupler Efficiency 5643 | -8/Garrison | Garrison Relay disabled 5807 | -8/Garrison | Triggered checkpoint 5869 | -8/Garrison | Garrison Relay disabled 5903 | -8/Garrison | Discovered new exit (range 10) 5996 | -8/Garrison | Garrison Relay disabled 6189 | -8/Garrison | Build established: Scavenger-Skirmisher 6255 | -8/Garrison | Entered Materials 6655 | -8/Materials | First assault squad dispatched 6663 | -8/Materials | Build established: Skirmisher 7006 | -8/Materials | Lost 3 parts (3u) 7065 | -8/Materials | Destroyed 13 combat bots 7272 | -8/Materials | Identified exit to Garrison 7272 | -8/Materials | Entered Garrison 7321 | -8/Garrison | Core integrity fell below 50% 7321 | -8/Garrison | System corruption reached 10% 7428 | -8/Garrison | Found Hvy. Reflective Plating 7434 | -8/Garrison | Found Hvy. Insulated Plating 7439 | -8/Garrison | Found Hvy. Reflective Plating 7540 | -8/Garrison | Triggered checkpoint 7684 | -8/Garrison | Triggered checkpoint 7784 | -8/Garrison | Triggered checkpoint 7812 | -8/Garrison | Triggered checkpoint 7942 | -8/Garrison | Discovered new exit (range 14) 8000 | -8/Garrison | Triggered checkpoint 8084 | -8/Garrison | Triggered checkpoint 8240 | -8/Garrison | Triggered checkpoint 8299 | -8/Garrison | Discovered new exit (range 10) 8397 | -8/Garrison | Phase Generator disabled 8480 | -8/Garrison | Triggered checkpoint 8555 | -8/Garrison | Spotted B-75 Beast 8619 | -8/Garrison | Expanded RIF knowledge: Coupler Efficiency 8708 | -8/Garrison | Triggered checkpoint 8747 | -8/Garrison | Garrison Relay disabled 8781 | -8/Garrison | Discovered new exit (range 5) 9009 | -8/Garrison | Entered Factory 9009 | -7/Factory | Evolved 2 slots: Utility x2 9404 | -7/Factory | Identified exit to Garrison 9409 | -7/Factory | Entered Garrison 9409 | -7/Garrison | Accompanied by 1 ally 9419 | -7/Garrison | Triggered checkpoint 9453 | -7/Garrison | Triggered checkpoint 9465 | -7/Garrison | Triggered checkpoint 9480 | -7/Garrison | Garrison Relay disabled 9517 | -7/Garrison | Build established: Bothacker-Skirmisher 9600 | -7/Garrison | Lost 4 allies 9815 | -7/Garrison | Triggered checkpoint 9817 | -7/Garrison | Triggered checkpoint 9825 | -7/Garrison | Triggered checkpoint 9853 | -7/Garrison | Destroyed 9 combat bots 9861 | -7/Garrison | Lost 3 allies 9905 | -7/Garrison | Triggered checkpoint 9928 | -7/Garrison | Expanded RIF knowledge: Autoassimilate 9949 | -7/Garrison | Garrison Relay disabled 9998 | -7/Garrison | Discovered new exit (range 12) 10137 | -7/Garrison | Triggered checkpoint 10170 | -7/Garrison | Garrison Relay disabled 10201 | -7/Garrison | Discovered new exit (range 4) 10217 | -7/Garrison | Build established: Botlord-Skirmisher 10307 | -7/Garrison | Spotted B-75 Beast 10328 | -7/Garrison | Allies destroyed B-75 Beast 10471 | -7/Garrison | Discovered new exit (range 11) 10511 | -7/Garrison | Triggered checkpoint 10548 | -7/Garrison | Found embedded Infiltrators 10558 | -7/Garrison | Garrison Relay disabled 10577 | -7/Garrison | Triggered checkpoint 10683 | -7/Garrison | Garrison Relay disabled 10851 | -7/Garrison | Entered Factory 10851 | -7/Factory | Accompanied by 13 allies 11170 | -7/Factory | Garrison activated, responded to threat 11220 | -7/Factory | Lost 3 allies 11251 | -7/Factory | First assault squad dispatched 11327 | -7/Factory | Lost 6 allies 11433 | -7/Factory | Discovered new exit (range 6) 11478 | -7/Factory | Discovered new exit (range 2) 11536 | -7/Factory | Identified exit to Garrison 11768 | -7/Factory | Discovered new exit (range 83) 12230 | -7/Factory | Lost 3 allies 12297 | -7/Factory | Entered Garrison 12297 | -7/Garrison | Accompanied by 2 allies 12316 | -7/Garrison | Expanded RIF knowledge: Autooverride 12361 | -7/Garrison | Triggered checkpoint 12386 | -7/Garrison | Garrison Relay disabled 12418 | -7/Garrison | Garrison Relay disabled 12523 | -7/Garrison | Triggered checkpoint 12523 | -7/Garrison | Triggered checkpoint 12558 | -7/Garrison | Assimilated ARC 4a with formatsys_deep 12575 | -7/Garrison | Destroyed 7 combat bots 12577 | -7/Garrison | Triggered checkpoint 12617 | -7/Garrison | Triggered checkpoint 12717 | -7/Garrison | Triggered checkpoint 12774 | -7/Garrison | Garrison Relay disabled 12824 | -7/Garrison | Discovered new exit (range 12) 12953 | -7/Garrison | Discovered new exit (range 13) 12969 | -7/Garrison | Triggered checkpoint 13331 | -7/Garrison | Garrison Relay disabled 13511 | -7/Garrison | Discovered new exit (range 5) 13573 | -7/Garrison | Triggered checkpoint 13587 | -7/Garrison | Garrison Relay disabled 13650 | -7/Garrison | Entered Factory 13650 | -6/Factory | Accompanied by 7 allies 13650 | -6/Factory | Evolved 2 slots: Utility x2 13851 | -6/Factory | Assembled infested ambush trap array 13917 | -6/Factory | Garrison activated, responded to threat 13944 | -6/Factory | Lost 9 allies 14000 | -6/Factory | First assault squad dispatched 14254 | -6/Factory | Spotted B-75 Beast 14263 | -6/Factory | Assimilated Beast 5a with formatsys_high 14381 | -6/Factory | Cargo convoy interrupted 14411 | -6/Factory | P-60 Hacker assimilated allied Angel 5a 14446 | -6/Factory | Lost 5 allies 14454 | -6/Factory | Core integrity fell below 50% 14458 | -6/Factory | Core integrity fell below 20% 14487 | -6/Factory | Lost 10 parts (1p1n5u3w) 14530 | -6/Factory | Identified exit to Garrison 14531 | -6/Factory | Entered Garrison 14575 | -6/Garrison | Triggered checkpoint 14634 | -6/Garrison | Triggered checkpoint 14634 | -6/Garrison | Triggered checkpoint 14752 | -6/Garrison | Phase Generator disabled 14757 | -6/Garrison | Discovered new exit (range 10) 14758 | -6/Garrison | Met a derelict Sapper fleeing the area 14760 | -6/Garrison | Build established: Bothacker-Mutant 14806 | -6/Garrison | Expanded RIF knowledge: Zone Cloak 14808 | -6/Garrison | Garrison Relay disabled 14812 | -6/Garrison | Destroyed by S-27 Virus with Autogun Last Messages --------------- 14770_ The unstable cave ceiling collapses. 14780_ System corrupted: Heat flow error (+217). 14797_ System corrupted: Matter fused (-8). 14797_ Jacked M-28 Smith... 14798_ Detecting nearby RIF Installer. 14803_ S-27 Virus springs to life. 14806_ S-27 Virus destroyed. Initiating installation procedure... 14806_ Expanded RIF knowledge: Zone Cloak. 14807_ Soldier 5d destroyed. 14808_ Garrison Relay disabled. 14808_ Relay Coupler [Grunt] tumbles out of relay unit. 14808_ Relay Coupler [Brawler] tumbles out of relay unit. 14808_ Relay Coupler [Duelist] tumbles out of relay unit. 14811_ E-15 Imp springs to life. 14811_ Acquired 68 matter. 14811_ Nuclear Pulse Thruster destroyed. Map ----- +----------------------------------------------------+ | %% #????????????????????????????? | | #????????????????????????????? | | #????????????????????????????? | | """"## ########## #????????????????????????????? | | ?????# ????????# #????????????????????????????? | | ?????# ???????## #????????????????????????????? | | ?????# ???????? #????????????????????????????? | | ?????# ????????# #????????????????????????????? | | ?????# ????????# #????????????????????????????? | | ?????# ######### ######### ##????????????????? | | ?????# ?????????????? | | ?????# ????????????? | | ???????????# #### ############??? #????????????? | | ???????????# ???# #?????????????? #????????????? | | ???????????# ???# #?????????????? #????????????? | | ???????????# ##?# #????########## #????????????? | | ???????????# ?# #????# ""# # #????????????? | | ???????????#!* ?# #????#"!! e #????????????? | | ??????####?#%[ ## #????#" ! #????????????? | | ????### #"##= # #????#" ee #????????????? | | ???## " # # #????#" e #????????????? | | ??## #% # #?????" #????????????? | | ??# % # #???????# #????????????? | | ??# # #???????# ########?????? | | ?# # ######### % s## """"#?????? | | ?# @ = s "#?????? | | ??# # ####### ## s #### """"#?????? | | ??# # #?????# #######??#######?????? | | ??## # #?????# #????????????????????? | | ??# # #?????# ????????????????????? | | ??# # # #?????" ????????????????????? | | ??### ## #?????! Y???????????????????? | | ????#? #?# #??? ????????????????????? | | ?????#### # ??# < #??? ???????????????????? | | ????????######??# #??? ???????????????????? | | ????????????????#######???" ???????????????????? | | ????????????????????????? ???????????????????? | | ?????????????????????????? = ??????????????????? | | ?????????????????????????? = ??????????????????? | | ?????????????????????????? ! ??????????????????? | | ??????????????????????????? ! ??????????????????? | | ??????????????????????????? !!???????????????????? | | ?????????????????????????????????????????????????? | | ?????????????????????????????????????????????????? | | ?????????????????????????????????????????????????? | | ?????????????????????????????????????????????????? | | | | | | | | | +----------------------------------------------------+ Best States ------------- Heat Dissipation 69 Energy Generation 16 Energy Capacity 290 Matter Stores 300 Matter Capacity 300 Sight Range 16 Terrain Scan Density 10 Armor Coverage 600 Resistance: TH 25 Propulsion Shielding 66 Utility Shielding 66 Weapon Cycling 15 Evasion (%) 63 Targeting Accuracy 5 Recoil Reduction 3 Relay Coupler Types 7 Relay Coupler Value 191 Item Schematics ----------------- None Robot Schematics ------------------ None Fabricated ------------ Nothing Repaired ---------- Imp. Heat Sink | 20% | -9/Materials Med. Armor Plating | 40% | -8/Materials Alien Tech Used ----------------- None Achievements -------------- None Challenges ------------ None Game ------ Seed SuperchargedLayeredCorpse Manual? 0 Play Time 02:15:39 Cumulative 359.7 hours Start 2025.08.18 @ 12:15:15 End 2025.08.18 @ 15:10:43 Sessions 1 Manual Loads 0 Difficulty Rogue Special Mode None Game No. 176 Rogue 176 Adventurer 0 Explorer 0 Win Type - Total 9 Types 6/0/2/0/0/0/0/0/0/1 Lore% 82 Gallery% 82 Achievement% 70 Wizard Run 0 Options --------- Layout 1 ASCII 0 Keyboard 0 Movement Mouse Keybinds 0 Fullscreen 1 Font 24/Smallcaps Map View 50x35 Zoom Use 0% Tactical HUD 1 Map Filters NONE Filters NONE Steam 1 RUN: bf1af912-3b12-486a-9301-0fafbf8ab52b